bitfinex-derivatives/quotes_SOLF0:USTF0_20250505
["timestamp","ask_amount","ask_price","bid_price","bid_amount"]
[1746456096114,27.58,145.04,144.93,13.70211593]
[1746456096115,27.58,145.04,144.95,25.52]
[1746456096314,6.8971,145.0,144.98,6.8977]
[1746456097213,6.8973,144.99,144.97,6.8982]
[1746456097412,27.58,145.04,144.97,6.8982]
[1746456097612,27.58,145.04,144.95,25.52]
[1746456097817,6.8971,145.0,144.97,6.898]
[1746456098208,6.8971,145.0,144.98,6.8977]
[1746456098515,6.8965,145.01,144.98,6.8977]
[1746456098715,6.8965,145.01,144.95,25.52]
[1746456099314,6.8965,145.01,144.98,6.8975]
[1746456100710,6.8972,145.0,144.97,6.898]
[1746456102115,6.8972,145.0,144.98,6.8976]
[1746456102516,6.8972,145.0,144.95,25.52]
[1746456102717,27.58,145.04,144.95,25.52]
[1746456103212,6.898,144.98,144.95,25.52]
[1746456104318,6.898,144.98,144.96,6.8985]
[1746456104519,6.898,144.98,144.95,25.52]
[1746456104917,6.898,144.98,144.96,6.8987]
[1746456105217,6.8975,144.99,144.96,6.8987]
[1746456105520,11.61571593,145.03,144.96,6.8987]
[1746456106118,11.61571593,145.03,144.95,25.52]
[1746456106519,6.8979,144.98,144.95,25.52]
[1746456106720,6.8979,144.98,144.96,6.8985]
[1746456107415,6.8975,144.99,144.92,27.5998]
[1746456107615,27.58,145.04,144.91,1.0]
[1746456107616,37.13571593,145.0,144.91,1.0]
[1746456107817,11.61571593,144.97,144.91,1.0]
[1746456108021,25.52,144.96,144.91,1.0]
[1746456109417,6.8995,144.95,144.93,6.9002]
[1746456109820,25.52,144.96,144.93,6.9002]
[1746456110024,32.4191,144.96,144.93,6.9002]
[1746456110225,25.52,144.96,144.93,6.9002]
[1746456110524,6.8995,144.95,144.93,6.9002]
[1746456110919,25.52,144.96,144.94,6.8997]
[1746456111420,2.1122,144.98,144.96,6.8987]
[1746456111720,2.1122,144.98,144.92,25.48]
[1746456112125,6.8983,144.97,144.92,25.48]
[1746456113622,6.8983,144.97,144.94,6.8994]
[1746456114228,6.8988,144.96,144.94,6.8994]
[1746456114635,6.8988,144.96,144.94,7.8994]
[1746456117136,6.8985,144.97,144.94,7.8994]
[1746456118433,6.8988,144.96,144.94,7.8994]
[1746456119635,6.8986,144.97,144.94,7.8995]
[1746456119838,2.1122,144.98,144.94,7.8995]
[1746456120737,9.0102,144.98,144.95,6.8991]
[1746456121036,6.898,144.98,144.94,1.0]
[1746456121334,6.898,144.98,144.95,6.8991]
[1746456122138,32.3776,144.99,144.96,6.8986]
[1746456122340,25.48,144.99,144.94,1.0]
[1746456123137,6.8982,144.98,144.96,6.8986]
[1746456123842,32.3775,144.99,144.97,6.8983]
[1746456124135,29.6201,145.02,144.94,1.0]
[1746456124331,6.8966,145.01,144.94,1.0]
[1746456124733,25.5,145.02,144.94,1.0]
[1746456125032,32.3962,145.02,144.99,6.8971]
[1746456125237,25.5,145.02,144.99,6.8971]
[1746456125440,32.3961,145.02,144.99,6.8971]
[1746456126037,25.5,145.02,144.99,6.8971]
[1746456126842,6.8965,145.01,144.99,6.7971]
[1746456127138,6.8965,145.01,144.98,6.8976]
[1746456127335,6.8965,145.01,144.94,2.9955]
[1746456128236,6.7965,145.01,144.94,2.9955]
[1746456129746,32.3961,145.02,144.94,2.9955]
[1746456130144,6.8964,145.01,144.99,6.8971]
[1746456130344,25.5,145.02,144.99,6.8971]
[1746456131945,6.8964,145.01,144.99,6.8971]
[1746456132947,6.8964,145.01,144.98,6.8976]
[1746456133147,25.5,145.02,144.96,25.48]
[1746456133841,6.8982,144.98,144.95,6.899]
[1746456134247,6.8984,144.97,144.94,1.0]
[1746456135046,6.8984,144.97,144.94,7.8995]
[1746456135441,6.8984,144.97,144.94,1.0]
[1746456135641,6.8984,144.97,144.95,6.899]
[1746456136247,13.63091593,145.0,144.94,1.0]
[1746456137648,6.899,144.96,144.94,1.0]
[1746456138246,25.48,144.98,144.94,1.0]
[1746456138446,6.8992,144.95,144.94,1.0]
[1746456140247,6.8984,144.97,144.94,1.0]
[1746456140755,6.8984,144.97,144.95,6.8991]
[1746456140946,6.8984,144.97,144.94,1.0]
[1746456141542,32.3779,144.98,144.94,1.0]
[1746456142044,25.48,144.98,144.94,1.0]
[1746456142254,6.8985,144.97,144.95,6.8989]
[1746456142550,6.8985,144.97,144.94,1.0]
[1746456142752,25.48,144.98,144.94,1.0]
[1746456142949,25.48,144.98,144.94,7.8995]
[1746456144353,6.8984,144.97,144.94,7.8995]
[1746456144953,6.8988,144.96,144.94,7.8995]
[1746456145349,25.48,144.98,144.94,7.8995]
[1746456145853,6.8985,144.97,144.95,6.8991]
[1746456146853,32.378,144.98,144.96,6.8987]
[1746456148050,6.8976,144.99,144.97,6.8983]
[1746456148455,2.0152,145.0,144.94,26.46]
[1746456148658,34.4296,145.01,144.94,26.46]
[1746456149353,34.4296,145.01,144.98,6.8975]
[1746456150356,6.8968,145.0,144.98,6.8975]
[1746456150654,27.533,145.01,144.98,6.8975]
[1746456150955,6.897,145.0,144.98,6.8975]
[1746456153153,6.8974,144.99,144.97,6.8981]
[1746456153349,25.46,145.01,144.97,6.8981]
[1746456153953,25.46,145.01,144.98,6.8977]
[1746456154154,6.8972,145.0,144.94,26.46]
[1746456155257,6.8972,145.0,144.97,6.8979]
[1746456155755,6.8973,144.99,144.97,6.8979]
[1746456158354,6.8981,144.98,144.95,6.8989]
[1746456158558,25.46,145.01,144.95,6.8989]
[1746456159762,6.8981,144.98,144.95,6.8989]
[1746456160062,6.8981,144.98,144.96,6.8987]
[1746456160561,6.8983,144.97,144.95,6.899]
[1746456160757,37.07571593,145.01,144.94,1.0]
[1746456161056,1.9529,145.0,144.94,1.0]
[1746456161258,6.8992,144.95,144.94,1.0]
[1746456162353,2.0414,144.98,144.94,1.0]
[1746456162559,2.0414,144.98,144.94,7.8997]
[1746456162860,6.8991,144.96,144.94,1.0]
[1746456164159,6.8992,144.95,144.94,1.0]
[1746456164763,25.46,144.97,144.91,1.0]
[1746456165359,6.9007,144.92,144.91,1.0]
[1746456167262,25.46,144.97,144.91,1.0]
[1746456167665,6.9001,144.94,144.91,1.0]
[1746456168165,25.46,144.97,144.91,1.0]
[1746456169266,6.9007,144.92,144.91,1.0]
[1746456170466,25.42,144.93,144.84,4.104]
[1746456170770,11.61571593,144.92,144.83,25.46]
[1746456170964,13.67841593,144.92,144.83,25.46]
[1746456171165,13.67841593,144.92,144.8,37.03571593]
[1746456171763,13.67841593,144.92,144.84,6.904]
[1746456171960,6.9029,144.88,144.8,37.03571593]
[1746456172162,25.42,144.89,144.8,37.03571593]
[1746456172363,25.42,144.89,144.85,7.18931]
[1746456172565,32.3224,144.89,144.85,0.28561]
[1746456173067,32.3224,144.89,144.86,6.9035]
[1746456174069,6.9026,144.88,144.85,7.18941]
[1746456174269,25.42,144.89,144.85,0.28561]
[1746456174567,25.42,144.89,144.86,6.9034]
[1746456175367,32.3223,144.89,144.86,6.9034]
[1746456175571,32.3223,144.89,144.87,6.903]
[1746456175868,32.3223,144.89,144.85,0.28561]
[1746456176069,32.3223,144.89,144.86,6.9032]
[1746456176870,6.9028,144.88,144.85,7.18941]
[1746456177168,37.03571593,144.89,144.85,0.28561]
[1746456177366,6.9034,144.87,144.85,0.28561]
[1746456177575,2.0241,144.88,144.86,1.0]
[1746456178269,6.903,144.87,144.86,1.0]
[1746456178872,6.9035,144.86,144.85,0.28561]
[1746456180073,6.9035,144.86,144.85,1e-05]
[1746456180268,1.9507,144.86,144.77,150.31854443]
[1746456180468,25.44,144.85,144.79,6.9066]
[1746456180668,25.44,144.85,144.77,146.37894443]
[1746456180868,11.63958478,144.84,144.77,146.37894443]
[1746456181469,6.9057,144.82,144.77,146.37894443]
[1746456182075,25.44,144.85,144.77,146.37894443]
[1746456182877,6.9053,144.83,144.77,146.37894443]
[1746456183075,25.44,144.85,144.77,146.37894443]
[1746456183677,6.9057,144.82,144.79,6.9066]
[1746456184276,6.9052,144.83,144.77,146.37894443]
[1746456184875,6.9055,144.82,144.8,6.9061]
[1746456185679,6.9051,144.83,144.8,6.9061]
[1746456186171,6.9054,144.83,144.8,6.9061]
[1746456187076,6.9054,144.82,144.8,6.9061]
[1746456187276,25.44,144.85,144.8,6.9061]
[1746456188579,25.44,144.85,144.77,146.37894443]
[1746456188580,25.44,144.85,144.79,6.9066]
[1746456189779,25.44,144.85,144.78,6.9071]
[1746456190082,6.9063,144.81,144.78,6.9071]
[1746456190982,6.9064,144.8,144.78,6.9071]
[1746456192887,25.44,144.81,144.74,2.0256]
[1746456193086,25.44,144.81,144.73,26.44]
[1746456193891,6.9076,144.78,144.76,6.9082]
[1746456194390,6.907,144.79,144.77,6.9078]
[1746456196794,25.44,144.81,144.73,26.44]
[1746456197093,25.44,144.81,144.73,38.08491389]
[1746456197395,32.3461,144.81,144.73,38.08491389]
[1746456197694,25.44,144.81,144.74,1.9562]
[1746456197897,25.44,144.81,144.79,6.9066]
[1746456198193,6.9058,144.82,144.74,1.9562]
[1746456198394,6.9053,144.83,144.8,6.9061]
[1746456198589,25.44,144.84,144.76,11.64491389]
[1746456198789,572.34,144.88,144.78,25.44]
[1746456198992,572.34,144.88,144.83,6.9047]
[1746456199196,572.34,144.88,144.79,1.9562]
[1746456199597,6.9043,144.85,144.79,1.9562]
[1746456199993,572.34,144.88,144.79,1.9562]
[1746456200194,6.9037,144.86,144.83,6.9046]
[1746456200395,572.34,144.88,144.79,13.60111389]
[1746456200593,25.44,144.88,144.79,13.60111389]
[1746456200789,6.9033,144.87,144.84,6.904]
[1746456200990,25.44,144.88,144.84,6.904]
[1746456201693,25.44,144.88,144.81,25.42]
[1746456201895,25.42,144.91,144.81,25.42]
[1746456202091,6.9026,144.88,144.82,4.2782]
[1746456202285,6.9026,144.88,144.85,6.9037]
[1746456202583,6.9026,144.88,144.82,4.2782]
[1746456203592,6.9026,144.88,144.85,6.9037]
[1746456204295,6.9031,144.87,144.84,6.9042]
[1746456205599,6.9037,144.86,144.84,6.9042]
[1746456205899,25.42,144.91,144.82,4.2782]
[1746456206098,11.64491389,144.9,144.81,25.42]
[1746456206495,6.9052,144.83,144.8,6.9059]
[1746456206690,6.9052,144.83,144.79,1.9562]
[1746456206999,25.4,144.86,144.81,6.9057]
[1746456207191,6.9049,144.84,144.81,6.9057]
[1746456207396,25.4,144.86,144.79,1.9562]
[1746456207609,6.9052,144.83,144.8,6.906]
[1746456207811,6.9052,144.83,144.79,1.9562]
[1746456208413,6.9047,144.84,144.81,6.9057]
[1746456210713,6.905,144.83,144.81,6.9057]
[1746456211014,25.4,144.86,144.81,6.9057]
[1746456211212,6.9047,144.84,144.81,6.9057]
[1746456211413,6.9047,144.84,144.79,1.9562]
[1746456211414,25.4,144.86,144.8,6.9062]
[1746456211814,6.9052,144.83,144.8,6.9062]
[1746456212815,6.9052,144.83,144.81,6.9058]
[1746456213314,25.4,144.86,144.83,6.9046]
[1746456213612,25.4,144.86,144.78,25.4]
[1746456213814,25.4,144.86,144.84,6.9043]
[1746456214013,6.9033,144.87,144.84,6.9043]
[1746456215317,6.9035,144.86,144.84,6.9043]
[1746456215517,25.4,144.89,144.84,6.9043]
[1746456215813,6.9037,144.86,144.84,6.9043]
[1746456216211,25.4,144.89,144.84,6.9043]
[1746456217217,6.9035,144.87,144.84,6.9043]
[1746456217619,25.4,144.89,144.79,2.0326]
[1746456217819,6.903,144.87,144.79,2.0326]
[1746456218012,25.4,144.89,144.79,2.0326]
[1746456218817,6.9038,144.86,144.82,6.9054]
[1746456219017,25.4,144.89,144.82,6.9054]
[1746456219916,6.904,144.85,144.82,6.9054]
[1746456220419,6.904,144.85,144.83,6.9048]
[1746456222920,6.9045,144.84,144.79,2.0326]
[1746456223417,6.905,144.83,144.79,2.0326]
[1746456223619,6.905,144.83,144.78,25.4]
[1746456224020,6.905,144.83,144.8,6.9061]
[1746456224318,6.9047,144.84,144.78,25.4]
[1746456224620,6.9047,144.84,144.81,6.9056]
[1746456224816,6.9053,144.83,144.78,25.4]
[1746456225119,25.4,144.85,144.78,25.4]
[1746456225318,25.4,144.85,144.79,6.9066]
[1746456225518,25.4,144.85,144.78,25.4]
[1746456226020,6.9049,144.84,144.81,6.9056]
[1746456226220,25.4,144.85,144.81,6.9056]
[1746456227019,6.905,144.83,144.81,6.9056]
[1746456228022,6.9047,144.84,144.82,6.9053]
[1746456228621,6.9047,144.84,144.81,6.9057]
[1746456229225,6.9049,144.83,144.81,6.9057]
[1746456229427,6.9049,144.83,144.8,6.9062]
[1746456229925,6.9049,144.83,144.81,6.9058]
[1746456230217,6.9049,144.83,144.78,25.4]
[1746456230423,6.9054,144.82,144.8,6.906]
[1746456230620,25.4,144.85,144.8,6.906]
[1746456231527,6.9052,144.83,144.81,6.9058]
[1746456232919,25.4,144.85,144.81,6.9058]
[1746456233125,6.9047,144.84,144.81,6.9058]
[1746456233322,6.9047,144.84,144.82,6.9054]
[1746456233624,6.9047,144.84,144.78,25.4]
[1746456233823,6.905,144.83,144.8,6.906]
[1746456234123,25.4,144.85,144.8,6.906]
[1746456234323,25.4,144.85,144.79,6.9068]
[1746456234824,6.9058,144.82,144.79,6.9068]
[1746456236025,6.906,144.81,144.79,6.9068]
[1746456236421,25.4,144.85,144.79,6.9068]
[1746456236621,6.9054,144.83,144.8,6.9063]
[1746456236822,25.4,144.85,144.8,6.9063]
[1746456237121,6.9054,144.83,144.8,6.9063]
[1746456237322,25.4,144.85,144.8,6.9063]
[1746456237518,6.9057,144.82,144.8,6.9063]
[1746456238425,6.9057,144.82,144.79,6.9066]
[1746456239025,6.9062,144.81,144.78,32.3071]
[1746456239226,25.4,144.85,144.78,32.3071]
[1746456239429,25.4,144.85,144.78,25.4]
[1746456239924,25.4,144.85,144.8,1.0]
[1746456240928,6.9059,144.81,144.8,1.0]
[1746456241331,25.4,144.85,144.8,7.9064]
[1746456242424,6.9054,144.83,144.8,7.9064]
[1746456242729,6.9047,144.84,144.8,1.0]
[1746456243932,6.9047,144.84,144.81,6.9057]
[1746456245428,6.9051,144.83,144.81,6.9057]
[1746456246427,6.9051,144.83,144.8,7.9061]
[1746456246628,6.9055,144.82,144.8,7.9061]
[1746456247231,6.9052,144.83,144.8,7.9061]
[1746456247529,6.9052,144.83,144.81,6.9059]
[1746456250735,25.4,144.85,144.8,1.0]
[1746456250933,11.64491389,144.84,144.75,25.38]
[1746456251326,11.64491389,144.84,144.76,6.908]
[1746456251831,6.9072,144.79,144.77,6.9076]
[1746456252933,6.9076,144.78,144.76,6.9081]
[1746456253435,25.38,144.81,144.75,25.38]
[1746456253635,6.9071,144.79,144.76,6.908]
[1746456253934,6.9071,144.79,144.75,25.38]
[1746456254134,25.38,144.81,144.75,25.38]
[1746456254636,32.2863,144.81,144.78,6.907]
[1746456254933,32.2863,144.81,144.75,25.38]
[1746456255129,32.2863,144.81,144.78,6.907]
[1746456255832,11.64491389,144.84,144.62,5.14931389]
[1746456255833,32.37491389,144.84,144.62,5.14931389]
[1746456256032,32.37491389,144.84,144.57,137.00353227]
[1746456256033,23.34483896,144.63,144.57,129.98653227]
[1746456256241,28.78,144.73,144.57,129.98653227]
[1746456256533,11.67241948,144.64,144.57,97.39420384]
[1746456256736,2.34786692,144.63,144.57,97.39420384]
[1746456256938,11.67241948,144.76,144.58,29.94]
[1746456256939,18.58381948,144.7,144.58,29.94]
[1746456257133,11.67241948,144.67,144.58,29.94]
[1746456257330,29.94,144.78,144.58,29.94]
[1746456257538,18.58531948,144.67,144.58,29.94]
[1746456257838,11.67241948,144.67,144.61,6.9151]
[1746456258228,11.67241948,144.67,144.6,547.02]
[1746456258428,11.67241948,144.67,144.6,553.9356]
[1746456258633,11.66612012,144.72,144.6,547.02]
[1746456259237,6.9122,144.68,144.64,6.914]
[1746456259432,6.9122,144.68,144.65,29.94]
[1746456259631,6.913,144.67,144.65,29.94]
[1746456260239,6.9122,144.68,144.65,29.94]
[1746456262241,6.9126,144.67,144.65,29.94]
[1746456264337,6.9131,144.66,144.65,29.94]
[1746456268751,12.31340904,144.66,144.65,29.94]
[1746456269351,6.9137,144.65,144.62,29.96]
[1746456270349,6.9137,144.65,144.62,36.8748]
[1746456272059,11.66612012,144.69,144.62,29.96]
[1746456272254,11.66612012,144.72,144.62,29.96]
[1746456272453,11.66612012,144.72,144.62,34.0656]
[1746456272655,6.9116,144.69,144.62,34.0656]
[1746456273258,6.9116,144.69,144.65,6.9132]
[1746456273457,6.9116,144.69,144.66,29.96]
[1746456273660,6.9121,144.68,144.66,29.96]
[1746456274059,5.39445164,144.67,144.66,29.96]
[1746456275361,5.39073988,144.67,144.66,29.96]
[1746456275659,5.39073988,144.67,144.66,36.8731]
[1746456277159,5.37855777,144.67,144.66,36.8731]
[1746456278362,5.37855777,144.67,144.66,29.96]
[1746456278963,6.0009,144.75,144.66,29.96]
[1746456279159,6.9123,144.68,144.66,29.96]
[1746456282559,5.3808186,144.67,144.66,29.96]
[1746456282959,5.3808186,144.67,144.66,36.8731]
[1746456284571,6.9114,144.7,144.67,6.9124]
[1746456284868,5.38902657,144.69,144.67,6.9124]
[1746456285066,5.38902657,144.68,144.66,36.873]
[1746456285266,17.66702012,144.75,144.66,36.873]
[1746456285471,5.39011798,144.74,144.66,36.873]
[1746456285672,5.39011798,144.73,144.66,29.96]
[1746456285871,5.39011798,144.72,144.66,29.96]
[1746456286068,5.39011798,144.71,144.66,29.96]
[1746456286269,6.9119,144.69,144.66,36.8726]
[1746456286471,5.39011798,144.68,144.66,36.8726]
[1746456286663,6.9119,144.69,144.66,36.8726]
[1746456286867,5.38686985,144.68,144.66,36.8726]
[1746456287072,6.9122,144.68,144.66,36.8726]
[1746456287276,5.39463546,144.67,144.66,36.8726]
[1746456287974,6.9119,144.69,144.66,36.8726]
[1746456288177,5.39561645,144.68,144.66,36.8726]
[1746456288369,6.9119,144.69,144.66,36.8726]
[1746456288570,5.39750044,144.68,144.66,36.8726]
[1746456288773,6.9119,144.69,144.66,36.8726]
[1746456288974,12.30973571,144.68,144.66,29.96]
[1746456289174,5.39753571,144.67,144.66,29.96]
[1746456289976,5.39753571,144.67,144.66,36.8731]
[1746456290280,12.31013571,144.67,144.66,29.96]
[1746456290779,12.31556509,144.67,144.66,29.96]
[1746456296184,12.25115064,144.67,144.66,29.96]
[1746456296684,5.33855064,144.67,144.66,36.8731]
[1746456301582,13.72112012,144.75,144.71,6.9104]
[1746456301788,11.66612012,144.78,144.71,29.5]
[1746456301989,6.909,144.75,144.71,29.5]
[1746456303083,11.66612012,144.78,144.71,29.5]
[1746456303281,70.76085786,144.79,144.74,6.9089]
[1746456303685,70.76085786,144.79,144.68,11.66612012]
[1746456303890,68.69815786,144.79,144.75,6.9085]
[1746456304181,6.9078,144.78,144.75,36.4085]
[1746456304789,31.32030147,144.77,144.75,29.5]
[1746456304989,24.41220147,144.77,144.75,29.5]
[1746456305192,4.0504,144.79,144.75,29.5]
[1746456305389,6.9081,144.77,144.75,29.5]
[1746456306087,6.9083,144.76,144.75,29.5]
[1746456309993,6.908,144.77,144.75,29.5]
[1746456310491,4.0504,144.79,144.75,29.5]
[1746456311191,6.9082,144.77,144.75,29.5]
[1746456311486,4.0504,144.79,144.75,29.5]
[1746456311696,6.9083,144.76,144.75,29.5]
[1746456317497,6.9105,144.72,144.69,547.5]
[1746456317794,4.0504,144.79,144.71,6.9105]
[1746456318290,6.9095,144.74,144.71,6.9105]
[1746456318796,4.0504,144.79,144.7,28.32]
[1746456319392,6.9085,144.76,144.7,28.32]
[1746456319701,4.0504,144.79,144.7,28.32]
[1746456320106,2.0285,144.79,144.7,28.32]
[1746456320600,11.66612012,144.81,144.7,28.32]
[1746456320902,6.9071,144.79,144.77,6.9076]
[1746456321202,6.9063,144.81,144.78,6.9071]
[1746456321602,11.66612012,144.84,144.77,28.32]
[1746456321803,6.9071,144.79,144.77,28.32]
[1746456321999,11.66612012,144.84,144.77,28.32]
[1746456322300,6.9069,144.79,144.77,35.2276]
[1746456322505,11.66612012,144.84,144.77,35.2276]
[1746456322807,11.66612012,144.84,144.77,28.32]
[1746456323503,6.9063,144.81,144.78,6.907]
[1746456323802,11.66612012,144.84,144.77,28.32]
[1746456324002,6.9061,144.81,144.78,6.907]
[1746456325704,6.9064,144.8,144.78,6.907]
[1746456326006,6.9064,144.8,144.77,35.2277]
[1746456327105,11.66612012,144.84,144.77,28.32]
[1746456327504,6.9066,144.8,144.77,35.2275]
[1746456327701,6.9066,144.8,144.77,28.32]
[1746456328305,6.9066,144.8,144.78,6.907]
[1746456328905,6.9059,144.81,144.77,28.32]
[1746456329404,6.9056,144.82,144.79,6.9064]
[1746456329607,6.9056,144.82,144.77,28.32]
[1746456330306,6.9056,144.82,144.8,6.9061]
[1746456330606,6.9048,144.84,144.81,28.3]
[1746456330799,2.0217,144.89,144.82,6.9051]
[1746456331003,2.0217,144.89,144.81,28.3]
[1746456331307,6.9052,144.83,144.81,28.3]
[1746456333512,6.9054,144.82,144.81,28.3]
[1746456333813,11.66612012,144.87,144.81,28.3]
[1746456334003,11.66612012,144.87,144.81,35.2058]
[1746456334205,2.0217,144.89,144.81,28.3]
[1746456334604,2.0217,144.89,144.82,6.9051]
[1746456334910,6.9047,144.84,144.81,28.3]
[1746456335109,6.9047,144.84,144.81,35.2056]
[1746456335804,6.9042,144.85,144.81,35.2056]
[1746456336007,6.9042,144.85,144.82,6.9054]
[1746456336807,6.9045,144.84,144.82,6.9054]
[1746456337307,6.9042,144.85,144.82,6.9054]
[1746456338606,6.9045,144.84,144.81,35.2057]
[1746456339008,6.9045,144.84,144.81,28.3]
[1746456339209,6.9042,144.85,144.83,6.9049]
[1746456340309,6.9034,144.87,144.84,6.9042]
[1746456340706,6.9034,144.87,144.81,28.3]
[1746456340910,6.9034,144.87,144.82,28.3]
[1746456341106,6.9037,144.86,144.82,28.3]
[1746456341411,6.9037,144.86,144.83,6.9045]
[1746456343012,11.66612012,144.9,144.82,35.2054]
[1746456343212,11.66612012,144.9,144.82,28.3]
[1746456343813,11.66612012,144.9,144.83,6.9049]
[1746456344312,11.66612012,144.9,144.82,28.3]
[1746456344612,6.9038,144.86,144.84,6.9045]
[1746456344914,11.66612012,144.9,144.84,6.9045]
[1746456345412,6.9034,144.87,144.84,6.9045]
[1746456345813,6.9036,144.86,144.83,6.9047]
[1746456346306,6.9036,144.86,144.82,28.3]
[1746456347214,6.9036,144.86,144.84,6.9042]
[1746456348512,6.9033,144.87,144.85,6.9039]
[1746456349014,6.9033,144.87,144.86,27.38]
[1746456350818,6.9028,144.88,144.86,27.38]
[1746456351017,4.1753,144.91,144.86,27.38]
[1746456351519,1.9666,144.93,144.86,27.38]
[1746456352017,6.9016,144.9,144.88,6.9022]
[1746456352517,6.9014,144.91,144.88,6.9022]
[1746456353219,6.9019,144.9,144.87,6.9028]
[1746456353516,1.9666,144.93,144.86,27.38]
[1746456353716,6.9014,144.91,144.88,6.9023]
[1746456353914,1.9666,144.93,144.88,6.9023]
[1746456354113,1.9666,144.93,144.86,27.38]
[1746456354318,6.9018,144.9,144.87,6.9026]
[1746456354818,6.9018,144.9,144.86,27.38]
[1746456355012,6.9018,144.9,144.87,6.9029]
[1746456355211,6.9021,144.89,144.87,6.9029]
[1746456355512,1.9666,144.93,144.87,6.9029]
[1746456355711,1.9666,144.93,144.88,6.9025]
[1746456355919,1.9666,144.93,144.86,27.38]
[1746456356918,6.9021,144.89,144.87,6.9028]
[1746456358320,1.9666,144.93,144.86,27.38]
[1746456358620,11.66612012,144.91,144.85,27.38]
[1746456358821,11.66612012,144.91,144.82,6.9052]
[1746456359021,11.66612012,144.91,144.83,27.38]
[1746456359221,4.1763,144.9,144.83,27.38]
[1746456359421,6.9043,144.85,144.83,27.38]
[1746456359917,6.9045,144.84,144.83,27.38]
[1746456361024,6.9041,144.85,144.83,27.38]
[1746456362226,6.9041,144.85,144.83,34.2849]
[1746456362527,6.9038,144.86,144.83,27.38]
[1746456362725,4.1763,144.9,144.83,27.38]
[1746456362923,4.1763,144.9,144.85,6.9036]
[1746456363122,6.9029,144.88,144.85,6.9036]
[1746456363729,6.9029,144.88,144.83,27.38]
[1746456364822,6.9029,144.88,144.85,6.9035]
[1746456365022,6.9029,144.88,144.83,27.38]
[1746456365233,6.9023,144.89,144.83,27.38]
[1746456365433,1.9666,144.93,144.83,28.38]
[1746456365634,1.9666,144.93,144.84,6.0587]
[1746456365832,6.9013,144.91,144.84,6.0587]
[1746456366433,6.9019,144.9,144.87,6.9026]
[1746456366639,1.9666,144.93,144.88,27.38]
[1746456367124,6.9019,144.9,144.88,27.38]
[1746456367838,6.9019,144.9,144.88,34.2825]
[1746456369536,6.9019,144.9,144.88,27.38]
[1746456369730,6.9021,144.89,144.88,27.38]
[1746456370133,1.9666,144.93,144.88,34.2825]
[1746456370337,1.9666,144.93,144.88,27.38]
[1746456370834,6.9014,144.91,144.88,34.2822]
[1746456371032,31.5929,144.95,144.88,27.38]
[1746456371238,6.9007,144.92,144.9,6.9016]
[1746456371436,2.1483,144.95,144.9,6.9016]
[1746456372133,6.9006,144.93,144.9,6.9016]
[1746456372334,2.1483,144.95,144.9,6.9016]
[1746456372631,2.1483,144.95,144.89,6.9019]
[1746456372935,6.9009,144.92,144.88,27.38]
[1746456373138,2.1483,144.95,144.89,6.902]
[1746456373837,6.901,144.92,144.89,6.902]
[1746456374239,2.1483,144.95,144.88,27.38]